fUST/lending_fUST_20250308
["ID","MTS","AMOUNT","RATE_DAILY","PERIOD"]
[355620256,1741398639209,-500.0,0.00049573,10]
[355620257,1741398639218,-512.35723364,0.00049573,10]
[355620258,1741398639228,-503.34918753,0.00049573,10]
[355620259,1741398639239,-151.0,0.00049573,90]
[355620260,1741398639248,-151.0,0.00049573,30]
[355620261,1741398639259,-20003.48256945,0.000496,120]
[355620262,1741398639269,-151.0,0.000496,120]
[355620263,1741398639278,-2000.0,0.00049949,4]
[355620264,1741398639288,-38804.0431131,0.00049963,4]
[355620265,1741398639298,-315.78728685,0.00049973,10]
[355620266,1741398639307,-500.0,0.00049973,10]
[355620267,1741398639315,-500.0,0.00049973,2]
[355620268,1741398639324,-500.0,0.00049973,10]
[355620269,1741398639333,-500.0,0.00049973,10]
[355620270,1741398639343,-500.0,0.00049973,10]
[355620271,1741398639352,-500.0,0.00049973,10]
[355620272,1741398639361,-500.0,0.00049973,10]
[355620273,1741398639370,-417.97348351,0.00049973,10]
[355620274,1741398639379,-500.0,0.00049973,10]
[355620275,1741398639388,-512.89761432,0.00049973,10]
[355620276,1741398639397,-500.0,0.00049973,10]
[355620277,1741398639406,-500.0,0.00049973,10]
[355620278,1741398639416,-500.0,0.00049973,10]
[355620279,1741398639425,-500.0,0.00049973,10]
[355620280,1741398639435,-77608.0862262,0.0004999,4]
[355620281,1741398639444,-254.56,0.00049999,120]
[355620282,1741398639453,-1373.62,0.0005,30]
[355620283,1741398639462,-1106.14,0.0005,30]
[355620284,1741398639471,-1200.0,0.0005,120]
[355620285,1741398639481,-1321.89120794,0.0005,120]
[355620286,1741398639490,-215.71799815,0.0005,20]
[355620287,1741398639499,-525.19275719,0.0005,10]
[355620288,1741398639511,-534.7477084,0.0005,120]
[355620289,1741398639520,-214.0,0.0005,120]
[355620290,1741398639530,-167.0,0.0005,120]
[355620291,1741398639540,-90914.48844325,0.0005,5]
[355620292,1741398639550,-636623.86298581,0.0005,120]
[355620417,1741398643693,-1120.71975057,0.0005,120]
[355620656,1741398646251,-147.90629271,0.0005,120]
[355620661,1741398646283,-1710.4,0.0005,120]
[355620671,1741398646380,-1377.08720353,0.0005,120]
[355621059,1741398736562,152.0,0.000433,120]
[355621060,1741398739041,152.0,0.000466,120]
[355621062,1741399000909,-169.0,0.000467,120]
[355621063,1741399000935,-331.44388815,0.00048471,120]
[355621064,1741399003756,-500.0,0.00048471,120]
[355621065,1741399007509,-22.82918489,0.00048471,120]
[355621066,1741399007532,-477.17081511,0.000494,120]
[355621067,1741399018236,-562.7,0.000494,120]
[355621068,1741399018833,-500.0,0.00048171,91]
[355621069,1741399018857,-62.7,0.00048271,96]
[355621070,1741399021538,-562.7,0.000494,120]
[355621071,1741399073055,-150.0,0.000479,2]
[355621072,1741399073078,-47.14065514,0.00048271,96]
[355621073,1741399077683,-302.85934486,0.00048271,96]
[355621074,1741399078327,-87.3,0.00048271,96]
[355621075,1741399080368,-302.85934486,0.00048371,100]
[355621076,1741399082420,-197.14065514,0.00048371,100]
[355621077,1741399082443,-105.71868972,0.00048471,100]
[355621078,1741399083057,-302.85934486,0.000492,120]
[355621079,1741399083583,-302.85934486,0.000492,120]
[355621080,1741399087841,-412.7,0.000492,120]
[355621081,1741399093028,-207.48131028,0.00048471,100]
[355621084,1741399558121,-158.736729,0.0003589,2]
[355621085,1741399558142,-2767.2213188,0.00041318,64]
[355621086,1741399558163,-1918.02662399,0.00041349,2]
[355621087,1741399628088,-641.74697581,0.00041349,2]
[355621088,1741399628110,-683.41845844,0.0004253,120]
[355621089,1741399628132,-158.736729,0.0004263,2]
[355621090,1741399628153,-233.8321,0.000432,120]
[355621091,1741399628305,-683.41845842,0.00046573,120]
[355621092,1741399628326,-1324.9159368,0.00048,120]
[355621093,1741399628347,-186.8,0.00048471,100]
[355621094,1741399628369,-500.0,0.00048571,100]
[355621095,1741399628390,-500.0,0.00048671,98]
[355621096,1741399628412,-747.11,0.00048771,95]
[355621097,1741399628435,-101.57769851,0.00049,30]
[355621098,1741399632151,-2473.29806497,0.00049,30]
[355621099,1741399637085,-294.46726286,0.00049,30]
[355621100,1741399637106,-2869.34302634,0.00049,30]
[355621101,1741399637127,-1919.80571959,0.00049,30]
[355621102,1741399641088,-555.47648151,0.00049,30]
[355621103,1741399653096,-568.62864651,0.00049,30]
[355621106,1741399755092,-983.5958967,0.00048973,28]
[355621107,1741399755113,-2493.73696525,0.00049,30]
[355621108,1741399760081,-12371.29193057,0.00049,30]
[355621109,1741399760103,-5451.54476074,0.00049,30]
[355621110,1741399773121,-12457.39498269,0.00049,30]
[355621111,1741399773143,-171.44551073,0.00049073,10]
[355621112,1741399773165,-500.0,0.00049073,10]
[355621113,1741399773188,-40742.7463948,0.0004909,4]
[355621114,1741399773210,-197.14065514,0.0004909,2]
[355621115,1741399773233,-297.99744884,0.00049099,120]
[355621116,1741399773259,-500.0,0.00049099,2]
[355621117,1741399773283,-500.0,0.00049099,2]
[355621118,1741399773307,-500.0,0.00049099,2]
[355621119,1741399773333,-500.0,0.00049099,2]
[355621120,1741399773363,-500.0,0.00049099,2]
[355621121,1741399773387,-500.0,0.00049099,2]
[355621122,1741399773411,-500.0,0.00049099,2]
[355621123,1741399773436,-500.0,0.00049099,2]
[355621124,1741399773461,-500.0,0.00049099,2]
[355621125,1741399773485,-500.0,0.00049099,2]
[355621126,1741399773508,-500.0,0.00049099,2]
[355621127,1741399773531,-500.0,0.00049099,2]
[355621128,1741399773554,-500.0,0.00049099,2]
[355621129,1741399773578,-500.0,0.00049099,2]
[355621130,1741399773601,-569.01845062,0.00049099,2]
[355621131,1741399773625,-500.0,0.00049099,2]
[355621132,1741399773649,-500.0,0.00049099,2]
[355621133,1741399773676,-500.0,0.00049099,2]
[355621134,1741399773701,-500.0,0.00049099,2]
[355621135,1741399773725,-500.0,0.00049099,2]
[355621136,1741399773748,-500.0,0.00049099,2]
[355621137,1741399773772,-500.0,0.00049099,2]
[355621138,1741399773796,-500.0,0.00049099,2]
[355621139,1741399773819,-500.0,0.00049099,2]
[355621140,1741399773841,-500.0,0.00049099,2]
[355621141,1741399773866,-500.0,0.00049099,2]
[355621142,1741399773890,-500.0,0.00049099,2]
[355621143,1741399774058,-500.0,0.00049099,2]
[355621144,1741399774085,-563.22427229,0.00049099,2]
[355621145,1741399774108,-25218.89,0.000491,120]
[355621146,1741399774129,-50000.0,0.000491,120]
[355621147,1741399774151,-40742.7463948,0.0004919,4]
[355621148,1741399774174,-8981.58131028,0.000492,120]
[355621149,1741399774196,-10000.0,0.000492,120]
[355621150,1741399774218,-10000.0,0.000492,120]
[355621151,1741399774240,-158.736729,0.0004937,2]
[355621152,1741399774262,-500.0,0.00049373,10]
[355621153,1741399774282,-500.0,0.00049373,10]
[355621154,1741399774303,-500.0,0.00049373,10]
[355621155,1741399774324,-1001.28912697,0.00049388,120]
[355621156,1741399774345,-3397.42918489,0.000494,120]
[355621157,1741399774369,-5000.0,0.000494,120]
[355621158,1741399774394,-5000.0,0.000494,120]
[355621159,1741399774415,-150.0,0.0004943,30]
[355621160,1741399774436,-634.91320948,0.00049473,10]
[355621161,1741399774457,-500.0,0.00049473,10]
[355621162,1741399774480,-500.0,0.00049473,10]
[355621163,1741399774500,-500.0,0.00049473,10]
[355621164,1741399774520,-500.0,0.00049473,10]
[355621165,1741399774541,-508.01585595,0.00049573,10]
[355621166,1741399774560,-500.68651185,0.00049573,3]
[355621167,1741399774582,-503.34918753,0.00049573,10]
[355621168,1741399774602,-500.0,0.00049573,2]
[355621169,1741399774623,-500.0,0.00049573,10]
[355621170,1741399774643,-40742.7463948,0.0004959,4]
[355621171,1741399774665,-20000.0,0.000496,120]
[355621172,1741399774687,-40742.7463948,0.00049879,4]
[355621173,1741399774709,-18119.14522375,0.00049889,120]
[355621207,1741399832680,-2750.0,0.00049536,30]
[355621213,1741399832769,-768.33863769,0.00049536,30]
[355621233,1741399838254,-2278.01064756,0.00049536,30]
[355621234,1741399838273,-1020.97189475,0.00049536,30]
[355621235,1741399838282,-1089.0,0.00049537,30]
[355621236,1741399838292,-1816.0,0.00049537,120]
[355621237,1741399838301,-150.0,0.00049537,2]
[355621238,1741399838310,-37435.85477625,0.00049889,120]
[355621239,1741399838320,-152.0,0.000499,120]
[355621240,1741399838329,-151.0,0.000499,30]
[355621241,1741399838339,-150.0,0.000499,2]
[355621242,1741399838349,-197.14065514,0.000499,2]
[355621243,1741399838358,-2000.0,0.00049953,4]
[355621244,1741399838367,-5286.76,0.0004997,10]
[355621245,1741399838377,-500.0,0.00049973,10]
[355621246,1741399838386,-500.0,0.00049973,10]
[355621247,1741399838395,-417.97348351,0.00049973,10]
[355621248,1741399838404,-500.0,0.00049973,10]
[355621249,1741399838414,-508.39307774,0.00049973,10]
[355621250,1741399838423,-500.0,0.00049973,10]
[355621251,1741399838433,-500.0,0.00049973,10]
[355621252,1741399838442,-500.0,0.00049973,10]
[355621253,1741399838451,-607.92363618,0.00049973,10]
[355621254,1741399838461,-500.0,0.00049973,10]
[355621255,1741399838470,-500.0,0.00049973,10]
[355621256,1741399838480,-500.0,0.00049973,2]
[355621257,1741399838490,-500.0,0.00049973,10]
[355621258,1741399838500,-500.0,0.00049973,10]
[355621259,1741399838510,-500.0,0.00049973,10]
[355621260,1741399838520,-500.0,0.00049973,10]
[355621261,1741399838529,-500.0,0.00049973,10]
[355621262,1741399838539,-7054.36726329,0.00049977,2]
[355621263,1741399838548,-6344.12,0.00049979,10]
[355621264,1741399838558,-40742.7463948,0.0004998,4]
[355621265,1741399838567,-500.0,0.00049988,2]
[355621266,1741399838577,-500.0,0.00049988,2]
[355621267,1741399838587,-81485.4927895,0.00049989,4]
[355621268,1741399838597,-21920.41,0.00049989,120]
[355621269,1741399838607,-500.0,0.0004999,60]
[355621270,1741399838616,-120522.34576488,0.00049999,2]
[355621271,1741399838626,-1371.0,0.00049999,120]
[355621272,1741399838635,-299.350971,0.0005,30]
[355621273,1741399838645,-190.0,0.0005,120]
[355621274,1741399838655,-90914.48844325,0.0005,5]
[355621275,1741399838664,-1328.07,0.0005,30]
[355621276,1741399838674,-156.964846,0.0005,120]
[355621277,1741399838683,-1346.73,0.0005,30]
[355621278,1741399838693,-1856972.55109123,0.0005,120]
[355621279,1741399838703,-200.0,0.00050077,120]
[355621280,1741399838712,-169.347,0.00050271,120]
[355621281,1741399838722,-150.0,0.000508,30]
[355621282,1741399838731,-159.0,0.000516,120]
[355621283,1741399838741,-175.0,0.00052,120]
[355621284,1741399838751,-167.0,0.00052,120]
[355621285,1741399838760,-155.89603517,0.0005217,30]
[355621286,1741399838769,-645.26466924,0.000526,30]
[355621287,1741399838778,-200.0,0.00052867,120]
[355621288,1741399838787,-152.0,0.000532,120]
[355621289,1741399838797,-186.0,0.000534,120]
[355621290,1741399838806,-169.0,0.000534,120]
[355621291,1741399838815,-2735.10505332,0.00054,120]
[355621292,1741399838824,-167.0,0.00054,120]
[355621293,1741399838833,-1000.0,0.00054,120]
[355621294,1741399838842,-2675.02006213,0.00054239,120]
[355621295,1741399838852,-520.06197558,0.00054294,120]
[355621296,1741399838861,-1308.52,0.000543,120]
[355621297,1741399838871,-150.0,0.00054473,10]
[355621298,1741399838880,-5000.0,0.000545,120]
[355621299,1741399838890,-5000.0,0.000545,120]
[355621300,1741399838899,-20000.0,0.000545,120]
[355621301,1741399838908,-25702.06093039,0.000545,120]
[355621302,1741399838917,-1000.0,0.00054552,10]
[355621303,1741399838927,-500.0,0.00054773,10]
[355621304,1741399838936,-150.0,0.00054773,3]
[355621305,1741399838946,-522.26920137,0.00054794,120]
[355621306,1741399838955,-773.64,0.00054794,120]
[355621307,1741399838968,-773.64,0.00054794,120]
[355621308,1741399838977,-773.64,0.00054794,120]
[355621309,1741399838987,-773.64,0.00054794,120]
[355621310,1741399838996,-773.64,0.00054794,120]
[355621311,1741399839007,-773.64,0.00054794,120]
[355621312,1741399839016,-773.64,0.00054794,120]
[355621313,1741399839026,-773.64,0.00054794,120]
[355621314,1741399839035,-773.64,0.00054794,120]
[355621315,1741399839047,-773.64,0.00054794,120]
[355621316,1741399839056,-773.64,0.00054794,120]
[355621317,1741399839066,-773.64,0.00054794,120]
[355621318,1741399839075,-773.64,0.00054794,120]
[355621319,1741399839085,-773.64,0.00054794,120]
[355621320,1741399839095,-773.64,0.00054794,120]
[355621321,1741399839104,-773.64,0.00054794,120]
[355621322,1741399839114,-773.64,0.00054794,120]
[355621323,1741399839123,-773.64,0.00054794,120]
[355621324,1741399839133,-773.64,0.00054794,120]
[355621325,1741399839143,-773.64,0.00054794,120]
[355621326,1741399839152,-773.64,0.00054794,120]
[355621327,1741399839161,-773.64,0.00054794,120]
[355621328,1741399839171,-773.64,0.00054794,120]
[355621329,1741399839180,-773.79854453,0.00054794,120]
[355621330,1741399839189,-500.0,0.00054794,120]
[355621331,1741399839199,-500.0,0.00054794,120]
[355621332,1741399839208,-500.0,0.00054794,2]
[355621333,1741399839217,-180.14888899,0.00054794,120]
[355621334,1741399839227,-500.0,0.00054794,120]
[355621335,1741399839236,-515.80807505,0.00054794,120]
[355621336,1741399839246,-500.0,0.00054794,120]
[355621337,1741399839255,-500.0,0.00054794,120]
[355621338,1741399839265,-235.44109172,0.00054794,120]
[355621339,1741399839274,-500.0,0.00054794,120]
[355621340,1741399839283,-666.0,0.00054794,120]
[355621341,1741399839292,-500.0,0.00054794,120]
[355621342,1741399839302,-152.82701115,0.00054794,2]
[355621343,1741399839311,-505.27740974,0.00054794,120]
[355621344,1741399839320,-534.02273981,0.00054794,120]
[355621345,1741399839330,-833.45,0.00054794,120]
[355621346,1741399839339,-500.0,0.00054794,120]
[355621347,1741399839348,-500.0,0.00054794,120]
[355621348,1741399839357,-322.06144267,0.00054794,5]
[355621349,1741399839368,-500.0,0.00054794,120]
[355621350,1741399839378,-500.0,0.00054794,120]
[355621351,1741399839387,-500.0,0.00054794,120]
[355621352,1741399839396,-500.0,0.00054794,120]
[355621353,1741399839406,-500.0,0.00054794,120]
[355621354,1741399839415,-500.0,0.00054794,120]
[355621355,1741399839424,-500.0,0.00054794,120]
[355621356,1741399839434,-500.0,0.00054794,120]
[355621357,1741399839443,-3136.93,0.00054794,120]
[355621358,1741399839452,-500.0,0.00054794,120]
[355621359,1741399839461,-821.96,0.00054794,120]
[355621360,1741399839470,-636.86,0.00054794,120]
[355621361,1741399839479,-506.45058787,0.00054794,120]
[355621362,1741399839488,-500.0,0.00054794,120]
[355621363,1741399839498,-584.90432183,0.00054794,120]
[355621364,1741399839507,-500.0,0.00054794,120]
[355621365,1741399839516,-500.0,0.00054794,120]
[355621366,1741399839525,-392.57812239,0.00054794,120]
[355621367,1741399839534,-566.39,0.00054794,7]
[355621368,1741399839544,-537.43701602,0.00054794,120]
[355621369,1741399839553,-242.36296663,0.00054794,120]
[355621370,1741399839563,-562.95,0.00054794,120]
[355621371,1741399839572,-562.95,0.00054794,120]
[355621372,1741399839581,-562.95,0.00054794,120]
[355621373,1741399839592,-562.95,0.00054794,120]
[355621374,1741399839601,-562.95,0.00054794,120]
[355621375,1741399839612,-562.95,0.00054794,120]
[355621376,1741399839623,-562.95,0.00054794,120]
[355621377,1741399839633,-562.95,0.00054794,120]
[355621378,1741399839646,-562.95,0.00054794,120]
[355621379,1741399839656,-562.95,0.00054794,120]
[355621380,1741399839666,-562.95,0.00054794,120]
[355621381,1741399839679,-562.95,0.00054794,120]
[355621382,1741399839691,-562.95,0.00054794,120]
[355621383,1741399839700,-562.95,0.00054794,120]
[355621384,1741399839710,-562.95,0.00054794,120]
[355621385,1741399839719,-562.95,0.00054794,120]
[355621386,1741399839729,-562.95,0.00054794,120]
[355621387,1741399839739,-562.95,0.00054794,120]
[355621388,1741399839749,-562.95,0.00054794,120]
[355621389,1741399839758,-562.95,0.00054794,120]
[355621390,1741399839767,-562.95,0.00054794,120]
[355621391,1741399839776,-562.95,0.00054794,120]
[355621392,1741399839785,-562.95,0.00054794,120]
[355621393,1741399839795,-563.01415129,0.00054794,120]
[355621394,1741399839804,-275.15223931,0.00054794,120]
[355621395,1741399839813,-189.51713978,0.00054794,120]
[355621396,1741399839823,-500.0,0.00054794,120]
[355621397,1741399839832,-622.09568481,0.00054794,30]
[355621398,1741399839841,-500.0,0.00054794,120]
[355621400,1741399839851,-163.72414308,0.00054794,120]
[355621402,1741399839859,-500.0,0.00054794,120]
[355621403,1741399839869,-300.89219109,0.00054794,120]
[355621404,1741399839879,-187.04318548,0.00054794,120]
[355621405,1741399839888,-427.88302104,0.00054794,120]
[355621406,1741399839898,-360.51069541,0.00054794,120]
[355621407,1741399839908,-171.94887113,0.00054794,120]
[355621408,1741399839917,-154.70584859,0.00054794,120]
[355621409,1741399839926,-184.33841157,0.00054794,120]
[355621410,1741399839936,-1000.0,0.00054794,7]
[355621411,1741399839945,-166.02734645,0.00054794,120]
[355621412,1741399839955,-176.88367046,0.00054794,120]
[355621413,1741399839968,-2500.0,0.00054794,120]
[355621415,1741399839977,-500.0,0.00054794,120]
[355621416,1741399839987,-640.60389837,0.00054794,120]
[355621417,1741399839996,-283.40772047,0.00054794,120]
[355621418,1741399840006,-500.0,0.00054794,120]
[355621419,1741399840015,-500.0,0.00054794,120]
[355621420,1741399840025,-537.12330089,0.00054794,120]
[355621421,1741399840036,-500.0,0.00054794,120]
[355621422,1741399840048,-500.0,0.00054794,120]
[355621423,1741399840058,-500.0,0.00054794,120]
[355621424,1741399840068,-206.96897443,0.00054794,120]
[355621425,1741399840078,-150.03393321,0.00054795,15]
[355621426,1741399840087,-9153.94757311,0.00054898,120]
[355621427,1741399840097,-506.97228073,0.00054952,15]
[355621428,1741399840106,-151.0,0.00054953,120]
[355621429,1741399840116,-300000.0,0.00055,30]
[355621430,1741399840125,-1200.0,0.00055,120]
[355621432,1741399840134,-6045.63,0.00055,120]
[355621433,1741399840144,-151.0,0.00055,120]
[355621434,1741399840153,-151.0,0.00055,90]
[355621435,1741399840165,-159.387747,0.00055,120]
[355621436,1741399840175,-176.055301,0.00055,120]
[355621437,1741399840184,-212.844612,0.00055,120]
[355621438,1741399840195,-151.0,0.00055,120]
[355621439,1741399840204,-157.403513,0.00055,120]
[355621440,1741399840214,-163.404489,0.00055,120]
[355621441,1741399840223,-175.045792,0.00055,120]
[355621442,1741399840233,-151.0,0.00055,120]
[355621443,1741399840242,-210.11159199,0.00055052,2]
[355621444,1741399840251,-512.35723364,0.00055052,14]
[355621445,1741399840260,-200.0,0.00055302,120]
[355621446,1741399840270,-1000.0,0.00055321,14]
[355621447,1741399840279,-250.0,0.00055321,3]
[355621448,1741399840288,-500.0,0.00055342,120]
[355621449,1741399840298,-521.07991759,0.00055342,120]
[355621451,1741399840308,-159.36395909,0.00055342,2]
[355621452,1741399840317,-500.0,0.00055342,120]
[355621453,1741399840326,-500.0,0.00055342,120]
[355621454,1741399840336,-500.0,0.00055342,120]
[355621455,1741399840345,-500.0,0.00055342,120]
[355621456,1741399840354,-833.45,0.00055342,120]
[355621457,1741399840363,-500.0,0.00055342,120]
[355621458,1741399840372,-500.0,0.00055342,120]
[355621459,1741399840382,-500.0,0.00055342,120]
[355621460,1741399840391,-500.0,0.00055342,120]
[355621461,1741399840401,-626.85200012,0.00055342,120]
[355621462,1741399840412,-500.0,0.00055342,120]
[355621463,1741399840421,-500.0,0.00055342,120]
[355621464,1741399840431,-500.0,0.00055342,120]
[355621465,1741399840440,-500.0,0.00055342,120]
[355621466,1741399840449,-500.0,0.00055342,120]
[355621467,1741399840458,-3136.93,0.00055342,120]
[355621468,1741399840467,-500.0,0.00055342,120]
[355621469,1741399840477,-821.96,0.00055342,120]
[355621470,1741399840486,-636.86,0.00055342,120]
[355621471,1741399840497,-500.0,0.00055342,120]
[355621472,1741399840507,-246.05934575,0.00055342,120]
[355621473,1741399840516,-500.0,0.00055342,120]
[355621474,1741399840526,-566.39,0.00055342,7]
[355621475,1741399840536,-500.0,0.00055342,120]
[355621476,1741399840545,-500.0,0.00055342,120]
[355621477,1741399840555,-515.51752005,0.00055342,120]
[355621478,1741399840564,-1000.0,0.00055342,7]
[355621479,1741399840573,-2500.0,0.00055342,120]
[355621480,1741399840583,-514.33925402,0.00055342,120]
[355621481,1741399840593,-500.0,0.00055342,120]
[355621482,1741399840603,-500.0,0.00055342,120]
[355621483,1741399840697,-500.0,0.00055342,120]
[355621484,1741399840708,-500.0,0.00055342,120]
[355621485,1741399840718,-505.38778026,0.00055452,15]
[355621486,1741399840728,-1000.0,0.00055452,15]
[355621487,1741399840738,-1000.0,0.00055452,15]
[355621488,1741399840748,-506.0512719,0.00055452,14]
[355621489,1741399840758,-1000.0,0.00055452,15]
[355621490,1741399840767,-1000.0,0.00055452,14]
[355621491,1741399840779,-1004.6639262,0.00055452,15]
[355621492,1741399840789,-1000.0,0.00055452,14]
[355621493,1741399840798,-521.00590337,0.00055452,2]
[355621494,1741399840807,-1000.0,0.00055452,15]
[355621495,1741399840817,-512.89761432,0.00055452,15]
[355621496,1741399840826,-1000.0,0.00055452,15]
[355621497,1741399840835,-316.55450913,0.00055452,15]
[355621498,1741399840844,-1000.0,0.00055452,15]
[355621499,1741399840853,-10000.0,0.000555,120]
[355621500,1741399840863,-199.61,0.000556,7]
[355621501,1741399840872,-512.52061289,0.00055868,14]
[355621502,1741399840881,-350.0,0.00055868,3]
[355621503,1741399840890,-500.0,0.0005589,120]
[355621504,1741399840899,-500.0,0.0005589,120]
[355621505,1741399840908,-500.0,0.0005589,120]
[355621506,1741399840918,-500.0,0.0005589,120]
[355621507,1741399840928,-500.0,0.0005589,120]
[355621508,1741399840937,-833.45,0.0005589,120]
[355621509,1741399840946,-500.0,0.0005589,120]
[355621510,1741399840955,-500.0,0.0005589,120]
[355621511,1741399840969,-500.0,0.0005589,120]
[355621512,1741399840978,-500.0,0.0005589,120]
[355621513,1741399840987,-500.0,0.0005589,120]
[355621514,1741399840996,-500.0,0.0005589,120]
[355621515,1741399841005,-500.0,0.0005589,120]
[355621516,1741399841014,-347.35096639,0.0005589,120]
[355621517,1741399841023,-487.6808264,0.0005589,120]
[355621518,1741399841033,-3136.93,0.0005589,120]
[355621519,1741399841042,-500.0,0.0005589,120]
[355621520,1741399841052,-821.96,0.0005589,120]
[355621521,1741399841062,-636.86,0.0005589,120]
[355621522,1741399841072,-545.45006945,0.0005589,120]
[355621523,1741399841081,-500.0,0.0005589,120]
[355621524,1741399841090,-566.39,0.0005589,7]
[355621525,1741399841099,-500.0,0.0005589,120]
[355621526,1741399841107,-500.0,0.0005589,120]
[355621527,1741399841117,-1000.0,0.0005589,7]
[355621528,1741399841126,-2500.0,0.0005589,120]
[355621529,1741399841135,-500.0,0.0005589,120]
[355621530,1741399841145,-500.0,0.0005589,120]
[355621531,1741399841154,-500.0,0.0005589,120]
[355621532,1741399841164,-500.0,0.0005589,120]
[355621533,1741399841173,-1346.73,0.000559,30]
[355621534,1741399841182,-175.0,0.00056,120]
[355621535,1741399841192,-167.0,0.00056,120]
[355621536,1741399841201,-2000.0,0.00056,120]
[355621537,1741399841211,-158.736729,0.0005611,2]
[355621538,1741399841220,-1328.07,0.000563,30]
[355621539,1741399841230,-2366.2132061,0.00056402,120]
[355621540,1741399841239,-450.0,0.00056416,3]
[355621541,1741399841248,-504.45314012,0.00056438,120]
[355621542,1741399841258,-556.17752378,0.00056438,120]
[355621543,1741399841267,-500.0,0.00056438,120]
[355621544,1741399841277,-500.0,0.00056438,120]
[355621545,1741399841286,-500.0,0.00056438,120]
[355621546,1741399841296,-833.45,0.00056438,120]
[355621547,1741399841305,-500.0,0.00056438,120]
[355621548,1741399841314,-500.0,0.00056438,120]
[355621549,1741399841323,-500.0,0.00056438,120]
[355621550,1741399841333,-387.03243612,0.00056438,120]
[355621551,1741399841342,-500.0,0.00056438,120]
[355621552,1741399841352,-500.0,0.00056438,120]
[355621553,1741399841361,-519.48480496,0.00056438,120]
[355621554,1741399841370,-3136.93,0.00056438,120]
[355621555,1741399841380,-500.0,0.00056438,120]
[355621556,1741399841389,-821.96,0.00056438,120]
[355621557,1741399841399,-636.86,0.00056438,120]
[355621558,1741399841408,-358.88854233,0.00056438,120]
[355621559,1741399841417,-566.39,0.00056438,7]
[355621560,1741399841427,-500.0,0.00056438,120]
[355621561,1741399841436,-500.0,0.00056438,120]
[355621562,1741399841446,-1000.0,0.00056438,7]
[355621563,1741399841455,-2537.36173944,0.00056438,120]
[355621564,1741399841464,-500.0,0.00056438,120]
[355621565,1741399841474,-204.16784151,0.00056438,120]
[355621566,1741399841483,-411.98912077,0.00056438,120]
[355621567,1741399841493,-500.0,0.00056438,120]
[355621568,1741399841503,-5000.0,0.000565,120]
[355621569,1741399841513,-152.0,0.000565,120]
[355621570,1741399841522,-10000.0,0.000565,120]
[355621571,1741399841531,-35577.33576911,0.000569,40]
[355621572,1741399841541,-550.0,0.00056964,3]
[355621573,1741399841551,-500.0,0.00056986,120]
[355621574,1741399841561,-500.0,0.00056986,120]
[355621575,1741399841572,-500.0,0.00056986,120]
[355621576,1741399841582,-833.45,0.00056986,120]
[355621577,1741399841592,-557.40368938,0.00056986,120]
[355621578,1741399841604,-500.0,0.00056986,120]
[355621579,1741399841613,-500.0,0.00056986,120]
[355621580,1741399841622,-500.0,0.00056986,120]
[355621581,1741399841632,-500.0,0.00056986,120]
[355621582,1741399841642,-3136.93,0.00056986,120]
[355621583,1741399841651,-500.0,0.00056986,120]
[355621584,1741399841661,-821.96,0.00056986,120]